[Event "Vener-dì-Rapid"]
[Site "Chess.com"]
[Date "2020.05.15"]
[Round "1"]
[White "Carbon"]
[Black "SanSecondoPR"]
[Result "1-0"]
[WhiteElo "1745"]
[BlackElo "1264"]
[TimeControl "720+3"]
[EndTime "12:10:42 PDT"]
[Termination "Carbon ha vinto per scaccomatto"]

1. e4 {[%clk 0:11:58.9]} 1... e5 {[%clk 0:11:58.9]} 2. Nf3 {[%clk 0:12:00.1]}
2... Nc6 {[%clk 0:11:54.6]} 3. Bc4 {[%clk 0:12:00]} 3... Nf6 {[%clk 0:11:52.8]}
4. d3 {[%clk 0:11:53.7]} 4... Be7 {[%clk 0:11:52.3]} 5. c3 {[%clk 0:11:49.9]}
5... O-O {[%clk 0:11:52.3]} 6. O-O {[%clk 0:11:51.6]} 6... h6 {[%clk 0:11:53.7]}
7. Re1 {[%clk 0:11:50.5]} 7... d6 {[%clk 0:11:47.8]} 8. h3 {[%clk 0:11:50.7]}
8... Re8 {[%clk 0:11:47.2]} 9. Bb3 {[%clk 0:11:52]} 9... Bf8 {[%clk 0:11:47.3]}
10. Nbd2 {[%clk 0:11:53.8]} 10... Ne7 {[%clk 0:11:47]} 11. d4 {[%clk 0:11:50]}
11... Ng6 {[%clk 0:11:42.2]} 12. Nf1 {[%clk 0:11:44.4]} 12... Kh8 {[%clk
0:11:27.9]} 13. Bxf7 {[%clk 0:11:41.1]} 13... Nf4 {[%clk 0:11:12.3]} 14. Bxe8
{[%clk 0:11:24.4]} 14... Qxe8 {[%clk 0:11:10.3]} 15. Bxf4 {[%clk 0:11:24]} 15...
exf4 {[%clk 0:11:09.1]} 16. Qd2 {[%clk 0:11:18.4]} 16... Nh5 {[%clk 0:11:06.1]}
17. N1h2 {[%clk 0:11:11.7]} 17... Qg6 {[%clk 0:10:45.2]} 18. Kh1 {[%clk
0:11:08.4]} 18... Be7 {[%clk 0:10:31.5]} 19. e5 {[%clk 0:11:08.2]} 19... d5
{[%clk 0:10:28.9]} 20. b3 {[%clk 0:11:04.9]} 20... Bf5 {[%clk 0:10:19.7]} 21. c4
{[%clk 0:10:59.6]} 21... Be4 {[%clk 0:10:17.6]} 22. cxd5 {[%clk 0:10:59.4]}
22... Bxd5 {[%clk 0:10:16.4]} 23. Rac1 {[%clk 0:10:49.7]} 23... c6 {[%clk
0:10:15.5]} 24. Qe2 {[%clk 0:10:09.9]} 24... Qf5 {[%clk 0:09:46.1]} 25. e6
{[%clk 0:09:48.5]} 25... g6 {[%clk 0:09:25.3]} 26. Qe5+ {[%clk 0:09:34.1]} 26...
Qxe5 {[%clk 0:09:21.7]} 27. Nxe5 {[%clk 0:09:35.4]} 27... Kg7 {[%clk 0:09:14.9]}
28. Nhg4 {[%clk 0:09:25.8]} 28... Nf6 {[%clk 0:08:44]} 29. Nxf6 {[%clk
0:08:45.3]} 29... Kxf6 {[%clk 0:08:32.2]} 30. Nd7+ {[%clk 0:08:45.4]} 30... Kf5
{[%clk 0:08:07.8]} 31. Re5# {[%clk 0:08:38.2]} 1-0

[Event "Vener-dì-Rapid"]
[Site "Chess.com"]
[Date "2020.05.15"]
[Round "1"]
[White "sirmale49"]
[Black "BAKR1980"]
[Result "0-1"]
[WhiteElo "1417"]
[BlackElo "1774"]
[TimeControl "720+3"]
[EndTime "12:17:10 PDT"]
[Termination "BAKR1980 ha vinto per scaccomatto"]

1. b3 {[%clk 0:11:51.2]} 1... e5 {[%clk 0:11:55.8]} 2. Bb2 {[%clk 0:11:52.2]}
2... Nc6 {[%clk 0:11:53.3]} 3. e3 {[%clk 0:11:54.2]} 3... d5 {[%clk 0:11:50.6]}
4. Nf3 {[%clk 0:11:55.3]} 4... e4 {[%clk 0:11:32.8]} 5. Nd4 {[%clk 0:11:52]}
5... Nxd4 {[%clk 0:11:04.7]} 6. Bxd4 {[%clk 0:11:51.2]} 6... h5 {[%clk
0:10:19.6]} 7. Nc3 {[%clk 0:11:48.2]} 7... c5 {[%clk 0:10:10.6]} 8. Be5 {[%clk
0:11:41.4]} 8... f6 {[%clk 0:09:54.1]} 9. Bg3 {[%clk 0:11:32.5]} 9... h4 {[%clk
0:09:49.2]} 10. Bb5+ {[%clk 0:11:03.2]} 10... Bd7 {[%clk 0:09:12.3]} 11. Bxd7+
{[%clk 0:10:46.6]} 11... Qxd7 {[%clk 0:09:06.7]} 12. Bc7 {[%clk 0:10:38.2]}
12... Ne7 {[%clk 0:08:21.6]} 13. Bf4 {[%clk 0:09:55.8]} 13... g5 {[%clk
0:08:16.6]} 14. Bxg5 {[%clk 0:09:57.3]} 14... fxg5 {[%clk 0:08:11.7]} 15. h3
{[%clk 0:09:56.3]} 15... Bg7 {[%clk 0:08:03.6]} 16. Rc1 {[%clk 0:09:46.4]} 16...
O-O-O {[%clk 0:07:22.6]} 17. Qe2 {[%clk 0:09:41.5]} 17... Rhf8 {[%clk
0:06:59.2]} 18. Nb5 {[%clk 0:09:19.8]} 18... Kb8 {[%clk 0:06:45.3]} 19. d4
{[%clk 0:09:06.4]} 19... a6 {[%clk 0:06:28.6]} 20. Na3 {[%clk 0:08:57.2]} 20...
cxd4 {[%clk 0:06:22.6]} 21. exd4 {[%clk 0:08:52.5]} 21... Qd6 {[%clk 0:05:53]}
22. Nb1 {[%clk 0:08:38.2]} 22... Bxd4 {[%clk 0:05:45.9]} 23. O-O {[%clk
0:08:33.4]} 23... Nf5 {[%clk 0:05:32.7]} 24. c3 {[%clk 0:08:23.8]} 24... Ng3
{[%clk 0:05:01.7]} 25. Qg4 {[%clk 0:08:07.9]} 25... Bb6 {[%clk 0:04:51.8]} 26.
Rcd1 {[%clk 0:07:38.5]} 26... e3 {[%clk 0:04:42.4]} 27. Qxg5 {[%clk 0:06:18.7]}
27... exf2+ {[%clk 0:04:20.2]} 28. Kh2 {[%clk 0:05:58.4]} 28... Nxf1+ {[%clk
0:04:17.1]} 29. Kh1 {[%clk 0:05:57.1]} 29... Qh2# {[%clk 0:04:16.5]} 0-1

[Event "Vener-dì-Rapid"]
[Site "Chess.com"]
[Date "2020.05.15"]
[Round "1"]
[White "fausto2p"]
[Black "pedrak"]
[Result "0-1"]
[WhiteElo "1130"]
[BlackElo "1655"]
[TimeControl "720+3"]
[EndTime "12:19:02 PDT"]
[Termination "pedrak ha vinto per abbandono"]

1. d4 {[%clk 0:11:57.5]} 1... Nf6 {[%clk 0:11:55.9]} 2. c4 {[%clk 0:11:56.2]}
2... e6 {[%clk 0:11:56.3]} 3. Nc3 {[%clk 0:11:46.2]} 3... Bb4 {[%clk 0:11:56.6]}
4. e3 {[%clk 0:11:37.9]} 4... O-O {[%clk 0:11:55.4]} 5. Nf3 {[%clk 0:11:18]}
5... Ne4 {[%clk 0:11:51.8]} 6. Qc2 {[%clk 0:11:13.5]} 6... f5 {[%clk 0:11:51.5]}
7. Bd3 {[%clk 0:11:10.5]} 7... Bxc3+ {[%clk 0:11:49.2]} 8. bxc3 {[%clk
0:11:06.5]} 8... Nf6 {[%clk 0:11:34.1]} 9. h3 {[%clk 0:10:54.5]} 9... d6 {[%clk
0:11:33.9]} 10. O-O {[%clk 0:10:47.2]} 10... b6 {[%clk 0:11:27.9]} 11. a4 {[%clk
0:10:27]} 11... a5 {[%clk 0:11:23.1]} 12. Ba3 {[%clk 0:10:03.1]} 12... Bb7
{[%clk 0:11:21.3]} 13. Ng5 {[%clk 0:09:51.1]} 13... Re8 {[%clk 0:11:11.1]} 14.
f4 {[%clk 0:09:10.4]} 14... h6 {[%clk 0:11:08.5]} 15. Nf3 {[%clk 0:08:57.6]}
15... Be4 {[%clk 0:11:06.3]} 16. Nd2 {[%clk 0:08:01.2]} 16... Bxd3 {[%clk
0:10:59.2]} 17. Qxd3 {[%clk 0:07:57.6]} 17... Nbd7 {[%clk 0:10:26.8]} 18. Rae1
{[%clk 0:07:28.6]} 18... g6 {[%clk 0:09:49.7]} 19. Rf3 {[%clk 0:07:17.9]} 19...
Kg7 {[%clk 0:09:46.7]} 20. Rg3 {[%clk 0:07:07]} 20... Nh5 {[%clk 0:09:47.8]} 21.
Rf3 {[%clk 0:06:56]} 21... Kh7 {[%clk 0:09:37.4]} 22. e4 {[%clk 0:05:45]} 22...
Ndf6 {[%clk 0:09:31.5]} 23. e5 {[%clk 0:05:14.2]} 23... dxe5 {[%clk 0:09:26]}
24. dxe5 {[%clk 0:05:04.3]} 24... Ng8 {[%clk 0:09:21.4]} 25. Ree3 {[%clk
0:03:11.4]} 25... Qxd3 {[%clk 0:09:15.4]} 26. Rxd3 {[%clk 0:03:11.1]} 26... Rad8
{[%clk 0:09:16]} 27. Bc1 {[%clk 0:02:39.4]} 27... Ne7 {[%clk 0:09:08.4]} 28. Nb3
{[%clk 0:02:26.8]} 28... Nc6 {[%clk 0:09:07.4]} 29. Nd4 {[%clk 0:02:07.8]} 29...
Nb8 {[%clk 0:08:53.6]} 30. Nb5 {[%clk 0:01:59.7]} 30... Na6 {[%clk 0:08:53.2]}
31. g4 {[%clk 0:01:00.7]} 31... Ng7 {[%clk 0:08:47.9]} 32. gxf5 {[%clk
0:00:44.9]} 32... Nxf5 {[%clk 0:08:38.1]} 33. Be3 {[%clk 0:00:18.7]} 33... Rxd3
{[%clk 0:08:35.9]} 0-1

[Event "Vener-dì-Rapid"]
[Site "Chess.com"]
[Date "2020.05.15"]
[Round "2"]
[White "BAKR1980"]
[Black "pedrak"]
[Result "1-0"]
[WhiteElo "1783"]
[BlackElo "1648"]
[TimeControl "720+3"]
[EndTime "12:37:44 PDT"]
[Termination "BAKR1980 ha vinto per abbandono"]

1. b3 {[%clk 0:12:02.9]} 1... d5 {[%clk 0:11:58.6]} 2. e3 {[%clk 0:12:00.2]}
2... Bf5 {[%clk 0:11:59.1]} 3. Nf3 {[%clk 0:11:54.2]} 3... e6 {[%clk 0:12:00]}
4. Bb2 {[%clk 0:11:49.9]} 4... Nf6 {[%clk 0:12:00]} 5. Be2 {[%clk 0:11:44.9]}
5... Nbd7 {[%clk 0:12:00.8]} 6. O-O {[%clk 0:11:38]} 6... Bd6 {[%clk 0:12:00.8]}
7. Nh4 {[%clk 0:11:32.6]} 7... Bg6 {[%clk 0:11:58.9]} 8. c4 {[%clk 0:11:27.2]}
8... c6 {[%clk 0:11:58.1]} 9. Nc3 {[%clk 0:11:21.9]} 9... O-O {[%clk 0:11:45.6]}
10. Nxg6 {[%clk 0:11:14.4]} 10... hxg6 {[%clk 0:11:46.5]} 11. d4 {[%clk
0:10:19.9]} 11... Qe7 {[%clk 0:11:44.3]} 12. a3 {[%clk 0:09:52.4]} 12... Rad8
{[%clk 0:11:33]} 13. g3 {[%clk 0:09:41.4]} 13... dxc4 {[%clk 0:10:56]} 14. bxc4
{[%clk 0:09:33.4]} 14... e5 {[%clk 0:10:56.9]} 15. c5 {[%clk 0:09:27]} 15... Bb8
{[%clk 0:10:55.8]} 16. Qb3 {[%clk 0:09:02.3]} 16... b5 {[%clk 0:10:24.4]} 17. a4
{[%clk 0:08:16.5]} 17... a6 {[%clk 0:10:19.7]} 18. Bf3 {[%clk 0:08:01]} 18... e4
{[%clk 0:10:12.8]} 19. Bg2 {[%clk 0:07:55.5]} 19... Rfe8 {[%clk 0:09:59.6]} 20.
axb5 {[%clk 0:07:50.2]} 20... axb5 {[%clk 0:10:00.6]} 21. Ra6 {[%clk 0:07:43.6]}
21... Qe6 {[%clk 0:09:56.4]} 22. Qxe6 {[%clk 0:07:16.5]} 22... Rxe6 {[%clk
0:09:57.2]} 23. Bh3 {[%clk 0:07:09.8]} 23... Re7 {[%clk 0:09:43.8]} 24. Rxc6
{[%clk 0:07:04.6]} 24... b4 {[%clk 0:09:42.9]} 25. Nb5 {[%clk 0:07:00.3]} 25...
Nd5 {[%clk 0:09:40.6]} 26. Ra1 {[%clk 0:06:51.9]} 26... f5 {[%clk 0:09:37.1]}
27. Rxg6 {[%clk 0:06:40.9]} 27... Rf7 {[%clk 0:09:29.7]} 28. Nd6 {[%clk
0:06:34.8]} 28... Bxd6 {[%clk 0:09:30.6]} 29. Rxd6 {[%clk 0:06:27.6]} 29... Nc3
{[%clk 0:08:57.9]} 30. c6 {[%clk 0:04:57.4]} 30... Nb5 {[%clk 0:08:33]} 31. Rxd7
{[%clk 0:04:17.5]} 31... Rdxd7 {[%clk 0:08:31.7]} 32. cxd7 {[%clk 0:04:12.9]}
32... Rxd7 {[%clk 0:08:29]} 33. Bxf5 {[%clk 0:04:07.4]} 33... Re7 {[%clk
0:08:29.7]} 34. Bg6 {[%clk 0:02:55.3]} 34... Na7 {[%clk 0:08:13.3]} 35. Ra4
{[%clk 0:02:49.6]} 35... Rc7 {[%clk 0:07:35.9]} 36. Rxb4 {[%clk 0:02:33.2]}
36... Kf8 {[%clk 0:07:37.1]} 37. d5 {[%clk 0:02:28.5]} 37... Ke7 {[%clk
0:07:37]} 38. Rxe4+ {[%clk 0:02:23.4]} 38... Kd6 {[%clk 0:07:38.3]} 39. Be5+
{[%clk 0:02:19.3]} 1-0

[Event "Vener-dì-Rapid"]
[Site "Chess.com"]
[Date "2020.05.15"]
[Round "2"]
[White "sirmale49"]
[Black "Carbon"]
[Result "0-1"]
[WhiteElo "1415"]
[BlackElo "1748"]
[TimeControl "720+3"]
[EndTime "12:40:10 PDT"]
[Termination "Carbon ha vinto per scaccomatto"]

1. e4 {[%clk 0:12:01.6]} 1... e6 {[%clk 0:12:00]} 2. f4 {[%clk 0:12:03.1]} 2...
d5 {[%clk 0:12:00.4]} 3. e5 {[%clk 0:12:03.5]} 3... c5 {[%clk 0:12:01.8]} 4. Nf3
{[%clk 0:12:03.9]} 4... Nc6 {[%clk 0:12:03.1]} 5. Bb5 {[%clk 0:12:03.1]} 5...
Bd7 {[%clk 0:12:01.8]} 6. O-O {[%clk 0:12:03.9]} 6... Nxe5 {[%clk 0:11:57.5]} 7.
fxe5 {[%clk 0:11:29.4]} 7... Bxb5 {[%clk 0:11:56.5]} 8. d3 {[%clk 0:11:30.7]}
8... Ne7 {[%clk 0:11:23.7]} 9. Ng5 {[%clk 0:11:29.7]} 9... Nf5 {[%clk 0:11:05]}
10. g4 {[%clk 0:11:16.7]} 10... Be7 {[%clk 0:11:03.1]} 11. Nh3 {[%clk
0:11:00.8]} 11... Nh4 {[%clk 0:10:56.9]} 12. g5 {[%clk 0:10:37.6]} 12... O-O
{[%clk 0:10:21.4]} 13. Qg4 {[%clk 0:10:34.9]} 13... Ng6 {[%clk 0:10:16.3]} 14.
Nc3 {[%clk 0:09:32.1]} 14... Bc6 {[%clk 0:09:58.1]} 15. d4 {[%clk 0:09:27.5]}
15... cxd4 {[%clk 0:09:44.9]} 16. Qxd4 {[%clk 0:09:26.4]} 16... Qa5 {[%clk
0:09:34.9]} 17. Be3 {[%clk 0:09:07.5]} 17... b6 {[%clk 0:09:22.1]} 18. Qd1
{[%clk 0:07:54.8]} 18... Rac8 {[%clk 0:09:08.7]} 19. Bd2 {[%clk 0:07:31.6]}
19... Qc5+ {[%clk 0:08:54.6]} 20. Nf2 {[%clk 0:06:58]} 20... Nxe5 {[%clk
0:08:39.2]} 21. a3 {[%clk 0:06:20.7]} 21... Nc4 {[%clk 0:08:23.3]} 22. Bf4
{[%clk 0:05:49.7]} 22... Nxb2 {[%clk 0:08:08]} 23. Qd2 {[%clk 0:05:39]} 23...
Nc4 {[%clk 0:08:01.7]} 24. Qd3 {[%clk 0:05:23.5]} 24... e5 {[%clk 0:07:57.6]}
25. Bg3 {[%clk 0:04:31]} 25... Bxg5 {[%clk 0:07:34.6]} 26. Rfe1 {[%clk
0:04:07.6]} 26... Be3 {[%clk 0:06:33.8]} 27. Rad1 {[%clk 0:03:01.6]} 27... d4
{[%clk 0:05:57.4]} 28. Ne4 {[%clk 0:02:50.2]} 28... Qd5 {[%clk 0:05:31.7]} 29.
Kh1 {[%clk 0:02:24.2]} 29... Nb2 {[%clk 0:05:10.1]} 30. Qb3 {[%clk 0:02:02.4]}
30... Nxd1 {[%clk 0:04:58.2]} 31. Rxd1 {[%clk 0:01:52.8]} 31... Qxe4+ {[%clk
0:04:48.7]} 32. Nxe4 {[%clk 0:01:50.6]} 32... Bxe4# {[%clk 0:04:50.1]} 0-1

[Event "Vener-dì-Rapid"]
[Site "Chess.com"]
[Date "2020.05.15"]
[Round "2"]
[White "SanSecondoPR"]
[Black "fausto2p"]
[Result "0-1"]
[WhiteElo "1245"]
[BlackElo "1151"]
[TimeControl "720+3"]
[EndTime "12:42:40 PDT"]
[Termination "fausto2p ha vinto per abbandono"]

1. e4 {[%clk 0:12:02.9]} 1... e6 {[%clk 0:11:59.2]} 2. d4 {[%clk 0:12:00]} 2...
d5 {[%clk 0:12:00.2]} 3. e5 {[%clk 0:12:00.7]} 3... c5 {[%clk 0:12:00.7]} 4. c3
{[%clk 0:12:00.7]} 4... Nc6 {[%clk 0:12:01.5]} 5. Nf3 {[%clk 0:12:02.4]} 5...
cxd4 {[%clk 0:11:54.4]} 6. cxd4 {[%clk 0:11:59.4]} 6... Nge7 {[%clk 0:11:48.3]}
7. a3 {[%clk 0:11:58.8]} 7... Nf5 {[%clk 0:11:48]} 8. b4 {[%clk 0:11:57.6]} 8...
a6 {[%clk 0:11:31.1]} 9. Nc3 {[%clk 0:11:57]} 9... b5 {[%clk 0:11:29.9]} 10. Ne2
{[%clk 0:11:50]} 10... Be7 {[%clk 0:11:02.7]} 11. g3 {[%clk 0:11:50.4]} 11...
O-O {[%clk 0:10:59]} 12. Bh3 {[%clk 0:11:46.6]} 12... Bd7 {[%clk 0:10:02.9]} 13.
O-O {[%clk 0:11:39.3]} 13... a5 {[%clk 0:09:56.5]} 14. Bd2 {[%clk 0:11:33.1]}
14... axb4 {[%clk 0:09:52.8]} 15. axb4 {[%clk 0:11:29.6]} 15... Rxa1 {[%clk
0:09:43.7]} 16. Qxa1 {[%clk 0:11:24.2]} 16... Qb6 {[%clk 0:08:52.6]} 17. g4
{[%clk 0:10:50.2]} 17... Nh4 {[%clk 0:08:19.2]} 18. Nxh4 {[%clk 0:10:40.8]}
18... Bxh4 {[%clk 0:08:19.7]} 19. Qc3 {[%clk 0:09:57.2]} 19... Rc8 {[%clk
0:07:54.9]} 20. Qe3 {[%clk 0:09:49]} 20... Be7 {[%clk 0:07:34.3]} 21. Rb1 {[%clk
0:09:36.2]} 21... Ra8 {[%clk 0:07:17.8]} 22. Bc3 {[%clk 0:09:07.9]} 22... Ra3
{[%clk 0:06:44.8]} 23. Qd2 {[%clk 0:08:30.4]} 23... Qa6 {[%clk 0:05:38]} 24. Bf1
{[%clk 0:08:20.8]} 24... Ra2 {[%clk 0:05:12.7]} 25. Qe1 {[%clk 0:08:09.1]} 25...
Ra4 {[%clk 0:04:05.4]} 26. f3 {[%clk 0:07:35.4]} 26... Qb6 {[%clk 0:03:47.6]}
27. h4 {[%clk 0:07:24.8]} 27... Nxe5 {[%clk 0:03:42.6]} 28. Kg2 {[%clk
0:06:00.2]} 28... Nc4 {[%clk 0:03:25.4]} 29. Qf2 {[%clk 0:05:30.8]} 29... f6
{[%clk 0:02:30.9]} 30. Nc1 {[%clk 0:04:52.2]} 30... Bc6 {[%clk 0:01:39.4]} 31.
Nb3 {[%clk 0:04:40.4]} 31... Bd6 {[%clk 0:01:12.2]} 32. Nc5 {[%clk 0:04:33.1]}
32... Bxc5 {[%clk 0:01:02.4]} 33. dxc5 {[%clk 0:04:29.1]} 33... Qc7 {[%clk
0:01:00.9]} 34. Qd4 {[%clk 0:04:13.5]} 34... e5 {[%clk 0:00:57.6]} 35. Qd1
{[%clk 0:03:43.5]} 35... Ne3+ {[%clk 0:00:50.1]} 0-1

[Event "Vener-dì-Rapid"]
[Site "Chess.com"]
[Date "2020.05.15"]
[Round "3"]
[White "fausto2p"]
[Black "sirmale49"]
[Result "1-0"]
[WhiteElo "1176"]
[BlackElo "1402"]
[TimeControl "720+3"]
[EndTime "12:59:38 PDT"]
[Termination "fausto2p ha vinto per abbandono"]

1. d4 {[%clk 0:12:01.5]} 1... Nf6 {[%clk 0:11:44.9]} 2. c4 {[%clk 0:12:01.8]}
2... g6 {[%clk 0:11:47.1]} 3. Nc3 {[%clk 0:12:01.7]} 3... Bg7 {[%clk 0:11:49]}
4. e4 {[%clk 0:12:02.7]} 4... d6 {[%clk 0:11:51]} 5. f3 {[%clk 0:12:03.6]} 5...
O-O {[%clk 0:11:52.4]} 6. Be3 {[%clk 0:12:03.7]} 6... e5 {[%clk 0:11:54.1]} 7.
d5 {[%clk 0:12:01.9]} 7... Ne8 {[%clk 0:11:54.4]} 8. g4 {[%clk 0:11:56.6]} 8...
Nd7 {[%clk 0:11:34.3]} 9. h4 {[%clk 0:11:50.3]} 9... Nc5 {[%clk 0:11:12.3]} 10.
b3 {[%clk 0:11:28.8]} 10... c6 {[%clk 0:10:31.2]} 11. Nge2 {[%clk 0:11:19.8]}
11... cxd5 {[%clk 0:10:22.5]} 12. Nxd5 {[%clk 0:11:11.6]} 12... Be6 {[%clk
0:10:19.8]} 13. Ng3 {[%clk 0:11:03.6]} 13... Nc7 {[%clk 0:10:04.6]} 14. Qd2
{[%clk 0:10:50.8]} 14... Nxd5 {[%clk 0:09:59.2]} 15. cxd5 {[%clk 0:10:34.8]}
15... Bd7 {[%clk 0:09:55.5]} 16. O-O-O {[%clk 0:10:23.4]} 16... Rc8 {[%clk
0:09:52.7]} 17. Kb1 {[%clk 0:10:19.2]} 17... Qb6 {[%clk 0:09:35.6]} 18. b4
{[%clk 0:10:06.9]} 18... a5 {[%clk 0:09:13.4]} 19. a3 {[%clk 0:09:45.4]} 19...
axb4 {[%clk 0:08:08.3]} 20. axb4 {[%clk 0:09:39.9]} 20... Ra8 {[%clk 0:06:49.6]}
21. Qb2 {[%clk 0:09:37.8]} 21... Na4 {[%clk 0:06:09.7]} 22. Bxb6 {[%clk
0:09:34.9]} 22... Nxb2 {[%clk 0:06:09.4]} 23. Kxb2 {[%clk 0:09:36.4]} 23... Rfc8
{[%clk 0:05:53.8]} 24. Ra1 {[%clk 0:09:30.3]} 24... Rxa1 {[%clk 0:05:43.8]} 25.
Kxa1 {[%clk 0:09:31]} 25... Rc3 {[%clk 0:05:29.4]} 26. Be2 {[%clk 0:09:17.7]}
26... Rb3 {[%clk 0:04:57.8]} 27. Ba5 {[%clk 0:09:16.1]} 27... Ba4 {[%clk
0:04:39.2]} 28. Rb1 {[%clk 0:09:03.3]} 28... Re3 {[%clk 0:04:18.4]} 29. Rb2
{[%clk 0:08:43.8]} 29... Bd7 {[%clk 0:03:45]} 30. Nf1 {[%clk 0:08:38]} 30... Rc3
{[%clk 0:03:32.2]} 31. Nd2 {[%clk 0:08:33.3]} 31... f5 {[%clk 0:03:24.3]} 32.
gxf5 {[%clk 0:08:25]} 32... gxf5 {[%clk 0:03:21.2]} 33. b5 {[%clk 0:08:10.1]}
33... Bh6 {[%clk 0:03:06.6]} 34. Bxc3 {[%clk 0:08:07.5]} 1-0

[Event "Vener-dì-Rapid"]
[Site "Chess.com"]
[Date "2020.05.15"]
[Round "3"]
[White "pedrak"]
[Black "SanSecondoPR"]
[Result "1-0"]
[WhiteElo "1650"]
[BlackElo "1242"]
[TimeControl "720+3"]
[EndTime "13:01:07 PDT"]
[Termination "pedrak ha vinto per abbandono"]

1. d4 {[%clk 0:12:02.9]} 1... d5 {[%clk 0:11:59.8]} 2. Nf3 {[%clk 0:12:03.8]}
2... c5 {[%clk 0:11:52.9]} 3. e3 {[%clk 0:11:57.8]} 3... c4 {[%clk 0:11:49.9]}
4. g3 {[%clk 0:11:56.5]} 4... Qc7 {[%clk 0:11:47.3]} 5. Bg2 {[%clk 0:11:57.5]}
5... Bg4 {[%clk 0:11:39.6]} 6. O-O {[%clk 0:11:57.9]} 6... h5 {[%clk 0:11:32.9]}
7. h3 {[%clk 0:11:59]} 7... Bf5 {[%clk 0:11:24.8]} 8. Nc3 {[%clk 0:11:53.4]}
8... Nf6 {[%clk 0:11:18]} 9. Ne5 {[%clk 0:11:52.2]} 9... e6 {[%clk 0:11:01.1]}
10. Re1 {[%clk 0:11:33]} 10... a6 {[%clk 0:11:00.7]} 11. a3 {[%clk 0:11:22.7]}
11... g5 {[%clk 0:10:47.1]} 12. Bd2 {[%clk 0:11:05.2]} 12... Bd6 {[%clk
0:10:29.1]} 13. f4 {[%clk 0:10:57.1]} 13... Ne4 {[%clk 0:10:04.3]} 14. Kh2
{[%clk 0:10:38.4]} 14... f6 {[%clk 0:09:34.5]} 15. Nf3 {[%clk 0:10:16.3]} 15...
g4 {[%clk 0:09:27.5]} 16. Nh4 {[%clk 0:10:15.8]} 16... Bh7 {[%clk 0:09:11.4]}
17. Nxe4 {[%clk 0:09:57.9]} 17... dxe4 {[%clk 0:09:06.2]} 18. Bc3 {[%clk
0:09:49.9]} 18... Nd7 {[%clk 0:08:56.2]} 19. Qe2 {[%clk 0:09:35.3]} 19... O-O-O
{[%clk 0:08:27.9]} 20. Bf1 {[%clk 0:09:31.1]} 20... Nb6 {[%clk 0:08:22.2]} 21.
Ba5 {[%clk 0:09:29.9]} 21... Qc6 {[%clk 0:08:14]} 22. Bxb6 {[%clk 0:09:30.1]}
22... Qxb6 {[%clk 0:08:09.2]} 23. Qxc4+ {[%clk 0:09:31.2]} 23... Kb8 {[%clk
0:07:54.5]} 24. b4 {[%clk 0:09:28.2]} 24... Rc8 {[%clk 0:07:46.8]} 25. Qb3
{[%clk 0:09:28.9]} 25... Bg8 {[%clk 0:07:37.3]} 26. c4 {[%clk 0:09:25.4]} 26...
e5 {[%clk 0:07:32.2]} 27. fxe5 {[%clk 0:09:12.8]} 27... fxe5 {[%clk 0:07:24.3]}
28. d5 {[%clk 0:09:13.9]} 28... a5 {[%clk 0:06:16.3]} 29. Rab1 {[%clk 0:09:04]}
29... axb4 {[%clk 0:06:04.9]} 30. axb4 {[%clk 0:08:47]} 30... Qd8 {[%clk
0:04:52.4]} 31. c5 {[%clk 0:08:29.7]} 31... Bc7 {[%clk 0:04:41.8]} 32. Bc4
{[%clk 0:08:29.3]} 32... Qf6 {[%clk 0:04:26.8]} 33. Rb2 {[%clk 0:08:15.7]} 33...
Bd8 {[%clk 0:04:05.8]} 34. Ra1 {[%clk 0:08:02.7]} 34... Qf7 {[%clk 0:03:37.3]}
35. Rba2 {[%clk 0:08:00.6]} 35... Bxh4 {[%clk 0:03:26.4]} 36. Ra8+ {[%clk
0:07:38.4]} 36... Kc7 {[%clk 0:03:20.6]} 37. d6+ {[%clk 0:07:39.8]} 37... Kd7
{[%clk 0:03:14.5]} 38. Bxf7 {[%clk 0:07:40.4]} 38... Bxg3+ {[%clk 0:03:06.4]}
39. Kxg3 {[%clk 0:07:41]} 39... gxh3 {[%clk 0:02:59.2]} 40. Qe6+ {[%clk
0:07:37.1]} 40... Kc6 {[%clk 0:02:47.5]} 41. Rxc8+ {[%clk 0:07:37.8]} 1-0

[Event "Vener-dì-Rapid"]
[Site "Chess.com"]
[Date "2020.05.15"]
[Round "3"]
[White "Carbon"]
[Black "BAKR1980"]
[Result "0-1"]
[WhiteElo "1738"]
[BlackElo "1795"]
[TimeControl "720+3"]
[EndTime "13:08:51 PDT"]
[Termination "BAKR1980 ha vinto per scaccomatto"]

1. e4 {[%clk 0:12:01.4]} 1... Nc6 {[%clk 0:11:52]} 2. d4 {[%clk 0:12:00]} 2...
d5 {[%clk 0:11:46.5]} 3. Nc3 {[%clk 0:11:38.9]} 3... dxe4 {[%clk 0:11:34.2]} 4.
d5 {[%clk 0:11:38.7]} 4... Ne5 {[%clk 0:11:22.6]} 5. Qd4 {[%clk 0:11:05.8]} 5...
Ng6 {[%clk 0:11:01]} 6. Bb5+ {[%clk 0:10:27.5]} 6... Bd7 {[%clk 0:10:51.8]} 7.
Bc4 {[%clk 0:09:35.5]} 7... Nf6 {[%clk 0:10:23.3]} 8. Be3 {[%clk 0:09:02]} 8...
Nh4 {[%clk 0:09:20.2]} 9. O-O-O {[%clk 0:07:57.8]} 9... Nf5 {[%clk 0:08:31.3]}
10. Qd2 {[%clk 0:06:22.6]} 10... g6 {[%clk 0:08:19.1]} 11. Nge2 {[%clk
0:06:08.4]} 11... Nd6 {[%clk 0:08:08.7]} 12. Bb3 {[%clk 0:06:02.9]} 12... Bg7
{[%clk 0:08:02.7]} 13. Bd4 {[%clk 0:06:00.8]} 13... b5 {[%clk 0:07:08.3]} 14.
Ng3 {[%clk 0:05:28.3]} 14... a5 {[%clk 0:07:01.1]} 15. a4 {[%clk 0:05:15.2]}
15... O-O {[%clk 0:06:54.6]} 16. h4 {[%clk 0:04:53.7]} 16... b4 {[%clk
0:06:47.7]} 17. Nce2 {[%clk 0:04:50.1]} 17... h5 {[%clk 0:05:27.4]} 18. f3
{[%clk 0:03:35.6]} 18... exf3 {[%clk 0:04:53.8]} 19. gxf3 {[%clk 0:03:34.6]}
19... Qe8 {[%clk 0:04:24]} 20. Rdg1 {[%clk 0:03:13.8]} 20... Bxa4 {[%clk
0:04:14.3]} 21. Bxf6 {[%clk 0:01:26.6]} 21... Bxf6 {[%clk 0:04:09]} 22. Nxh5
{[%clk 0:01:19.9]} 22... Bh8 {[%clk 0:03:39.9]} 23. Qg5 {[%clk 0:00:51.5]} 23...
Bxb3 {[%clk 0:03:31.9]} 24. cxb3 {[%clk 0:00:53.4]} 24... a4 {[%clk 0:03:27.1]}
25. Nhf4 {[%clk 0:00:48.6]} 25... axb3 {[%clk 0:03:21.8]} 26. h5 {[%clk
0:00:45.8]} 26... Nc4 {[%clk 0:02:34]} 27. Kd1 {[%clk 0:00:29]} 27... Ra1+
{[%clk 0:02:26.6]} 28. Nc1 {[%clk 0:00:29.1]} 28... Rxc1+ {[%clk 0:02:19.4]} 29.
Kxc1 {[%clk 0:00:21.5]} 29... Qa4 {[%clk 0:02:14.5]} 30. Kd1 {[%clk 0:00:09.3]}
30... Qa1+ {[%clk 0:02:10.3]} 31. Ke2 {[%clk 0:00:11]} 31... Qxb2+ {[%clk
0:02:07.5]} 32. Kf1 {[%clk 0:00:12.9]} 32... Ne3+ {[%clk 0:01:51.6]} 33. Ke1
{[%clk 0:00:11.3]} 33... Bc3# {[%clk 0:01:35.8]} 0-1